fUST/lending_fUST_20240628
["ID","MTS","AMOUNT","RATE_DAILY","PERIOD"]
[330566097,1719577839392,-334.85706449,0.00019158,2]
[330566098,1719577839404,-280.86267126,0.00019158,2]
[330566223,1719577844127,-636.6550036,0.000189,2]
[330566224,1719577844137,-12131.60589256,0.00019158,2]
[330566225,1719577844162,-0.68337054,0.00019158,2]
[330566377,1719577847959,-3212.14335811,0.00019158,2]
[330566570,1719578106418,1071.63192771,9.999e-05,2]
[330566572,1719578167932,304.03391779,0.0001212,2]
[330566573,1719578170874,165.20919927,0.0001212,2]
[330566575,1719578240060,1171.0897443,0.0001,2]
[330566576,1719578246036,159.35965211,9.999e-05,2]
[330566577,1719578287926,-300.0,0.00014998,2]
[330566578,1719578287950,-224.0,0.00014998,2]
[330566579,1719578287974,-1937.86709152,0.00014999,2]
[330566580,1719578287996,-2218.6179,0.00014999,2]
[330566581,1719578288020,-1756.48103849,0.00014999,2]
[330566582,1719578377954,490.18,0.00026,120]
[330566583,1719578424998,776.11834176,0.00014999,2]
[330566584,1719578520847,155.19492539,0.00014999,2]
[330566585,1719578570118,154.83742071,0.00014999,2]
[330566586,1719578845146,-3000.0,0.00015918,2]
[330566587,1719578845168,-490.54850109,0.00015995,2]
[330566588,1719578845189,-300.0,0.00016254,2]
[330566589,1719578845209,-6680.96989891,0.00016255,2]
[330566590,1719578971126,-300.0,0.00016254,2]
[330566591,1719578971148,-9875.86951582,0.00016255,2]
[330566682,1719579038687,-1002.5841208,0.00016255,2]
[330566683,1719579038700,-5818.14677488,0.00016255,2]
[330566684,1719579038715,-662.99822681,0.00016255,2]
[330567111,1719579043860,-2029.0022142,0.00016255,2]
[330567113,1719579043870,-300.0,0.00016647,2]
[330567115,1719579043880,-283.400311,0.00016648,2]
[330567117,1719579043890,-617.843708,0.00016657,2]
[330567146,1719579044126,-13859.99974129,0.00016657,2]
[330567147,1719579044139,-10422.15655071,0.00016657,2]
[330567148,1719579044153,-995.51471689,0.00017779,2]
[330567149,1719579044163,-1000.0,0.00017824,2]
[330567150,1719579044173,-5971.11639442,0.00018099,2]
[330567151,1719579044185,-333.92645003,0.00018099,2]
[330567298,1719579048030,-3946.60854655,0.00018099,2]
[330567299,1719579048040,-995.51471685,0.00018104,2]
[330567300,1719579048050,-407.0,0.00018311,2]
[330567301,1719579048059,-995.51471685,0.00018429,2]
[330567302,1719579048068,-251.97722579,0.00018707,2]
[330567303,1719579048078,-5283.67863355,0.00018708,2]
[330567304,1719579048088,-995.51471685,0.00018753,2]
[330567305,1719579048097,-321.54466569,0.00018899,2]
[330567306,1719579048109,-424.43666906,0.000189,2]
[330567307,1719579048119,-995.51471685,0.00019078,2]
[330567308,1719579048129,-185.58587461,0.000191,2]
[330567309,1719579048139,-6186.8538747,0.00019155,2]
[330567588,1719579253316,1690.93197725,0.00014999,2]
[330567590,1719579266769,1690.93197725,0.00014999,2]
[330567591,1719579278102,360.24777023,0.00014999,2]
[330567592,1719579317831,803.51613156,0.00014999,2]
[330567593,1719579403819,2054.46626808,0.00014999,2]
[330567594,1719579416215,172.3010942,0.00014999,2]
[330567595,1719579425783,5214.38773308,0.00014998,2]
[330567596,1719579440590,1602.15011464,0.00014999,2]
[330567597,1719579472108,157.19006853,0.00014999,2]
[330567598,1719579489060,776.11834176,0.00014999,2]
[330567599,1719579494754,2130.41057228,0.00014999,2]
[330567600,1719579502141,1433.52239716,0.00014999,2]
[330567601,1719579517556,1481.07570588,0.00015,2]
[330567602,1719579520223,1143.98164973,0.00014999,2]
[330567603,1719579535091,909.52292055,0.00014999,2]
[330567604,1719579561010,746.81527298,0.00014999,2]
[330567605,1719579593150,154.97340122,0.00014999,2]
[330567606,1719579617604,154.83742071,0.00014999,2]
[330567607,1719579625791,154.85288975,0.00014999,2]
[330567608,1719579639077,266.65102337,0.00014999,2]
[330567609,1719579647584,154.88382167,0.00014999,2]
[330567610,1719579651818,154.83742071,0.00014999,2]
[330567611,1719579655110,154.89814171,0.00014999,2]
[330567612,1719579657529,1317.96013097,0.00014999,2]
[330567613,1719579660730,179.63254397,0.00014999,2]
[330567614,1719579663396,155.55336891,0.00014999,2]
[330567615,1719579676535,310.54474823,0.00014999,2]
[330567616,1719579686633,2094.6721062,0.0001497,2]
[330567617,1719579694584,159.62800801,0.00014999,2]
[330567618,1719579698484,155.01284205,0.00014999,2]
[330567619,1719579700905,303.31254547,0.00014999,2]
[330567620,1719579702044,267.19433174,0.00014999,2]
[330567621,1719579715971,221.55087959,0.00014999,2]
[330567622,1719579725323,393.86909153,0.00014999,2]
[330567623,1719579732917,201.39739064,0.00014999,2]
[330567624,1719579743521,155.00138827,0.00014999,2]
[330567625,1719579763589,155.01498206,0.00014999,2]
[330567627,1719579803339,155.23054728,0.00014999,2]
[330567628,1719579824734,179.51481294,0.00014999,2]
[330567629,1719579848237,250.0,0.00014969,2]
[330567630,1719579856117,237.23152103,0.00014999,2]
[330567631,1719579949383,853.1929474,0.00014969,2]
[330567632,1719580007920,3000.0,0.00014969,2]
[330567633,1719580046136,-960.863767,0.00015257,2]
[330567634,1719580046157,-300.0,0.00015571,2]
[330567635,1719580046178,-659.9922509,0.00015572,2]
[330567636,1719580093020,210.04761257,9.9e-05,2]
[330567637,1719580153441,-300.0,0.00015571,2]
[330567638,1719580153466,-300.0,0.00015571,2]
[330567639,1719580153490,-154.82195475,0.00015572,2]
[330567640,1719580153512,-154.82195475,0.00015572,2]
[330567641,1719580153536,-4221.25636924,0.00015572,2]
[330567642,1719580162112,-517.44440521,0.00015572,2]
[330567643,1719580180043,309.6439095,0.00014999,2]
[330567660,1719580231950,-300.0,0.00015571,2]
[330567661,1719580231959,-300.0,0.00015571,2]
[330567662,1719580231969,-384.01825298,0.00015572,2]
[330567694,1719580238036,-13544.02879973,0.00015572,2]
[330567698,1719580238048,-5573.25992194,0.00015572,2]
[330567701,1719580238059,-480.431883,0.00015747,2]
[330567703,1719580238070,-168.53777677,0.00015995,2]
[330567705,1719580238080,-1000.0,0.00016254,2]
[330567706,1719580238090,-26069.57075142,0.00016255,2]
[330567709,1719580238102,-1302.90272996,0.00017028,2]
[330567710,1719580238112,-420.0,0.00017032,2]
[330567713,1719580238124,-420.0,0.00017128,2]
[330567714,1719580238134,-1302.90272996,0.0001754,2]
[330567716,1719580238145,-1000.0,0.00017624,2]
[330567718,1719580238155,-1302.90272996,0.00018053,2]
[330567720,1719580238166,-155.05277752,0.0001818,2]
[330567722,1719580238176,-154.82195475,0.0001818,2]
[330567724,1719580238186,-1302.90272996,0.00018565,2]
[330567726,1719580238196,-587.0,0.0001863,2]
[330567728,1719580238207,-5283.67863355,0.00018766,2]
[330567730,1719580238217,-191.38036061,0.00018798,2]
[330567732,1719580238228,-155.0570109,0.00018798,2]
[330567734,1719580238240,-155.33399751,0.00018798,2]
[330567736,1719580238257,-825.99151127,0.00018798,2]
[330567738,1719580238268,-528539.73971,0.000188,2]
[330567740,1719580238278,-587.0,0.00018841,2]
[330567742,1719580238296,-166.34068276,0.00018875,2]
[330567743,1719580238306,-163.07194785,0.000189,2]
[330567745,1719580238316,-282.95777938,0.000189,2]
[330567747,1719580238327,-1000.0,0.00018994,2]
[330567750,1719580238350,-1302.90272996,0.00019077,2]
[330567753,1719580238369,-822.08,0.00019144,3]
[330567756,1719580238386,-271.5,0.00019144,3]
[330567758,1719580238404,-814.54,0.00019154,3]
[330567761,1719580238423,-64497.1048721,0.00019154,2]
[330567764,1719580238444,-64497.1048721,0.00019158,2]
[330567767,1719580238462,-41747.59861256,0.00019164,2]
[330567769,1719580238477,-151.0,0.00019164,2]
[330567772,1719580238495,-1090.111386,0.00019164,2]
[330567774,1719580238511,-1090.111386,0.00019164,2]
[330567777,1719580238524,-842.136069,0.00019164,2]
[330567779,1719580238541,-842.136069,0.00019164,2]
[330567782,1719580238558,-4000.0,0.00019167,2]
[330567785,1719580238577,-4000.0,0.00019167,2]
[330567788,1719580238596,-378.87818299,0.00019167,2]
[330567790,1719580238607,-154.686786,0.00019168,2]
[330567792,1719580238621,-154.676423,0.00019168,2]
[330567795,1719580238638,-163.140897,0.00019168,2]
[330567797,1719580238652,-1018.125258,0.00019168,2]
[330567800,1719580238665,-1018.125258,0.00019168,2]
[330567802,1719580238681,-151.0,0.00019168,2]
[330567804,1719580238695,-160.64792344,0.00019168,2]
[330568629,1719580357432,163.738245,9.9e-05,2]
[330568630,1719580513322,207.76713087,0.00012,2]
[330568631,1719580528442,166.34068276,0.00012,2]
[330568632,1719580548416,2416.91747958,0.00015,2]
[330568634,1719580586859,1323.26248334,0.00014999,2]
[330568635,1719580606380,156.46435686,0.00015,2]
[330568636,1719580620782,843.07795488,0.00014999,2]
[330568637,1719580760746,842.63503148,0.00014999,2]
[330568638,1719580777239,271.32677426,0.00014999,2]
[330568639,1719580787167,166.93439889,0.0001,2]
[330568640,1719580795839,389.81234736,0.00014999,2]
[330568641,1719580841258,195.47966853,0.00014999,2]
[330568642,1719580847540,267.66100316,0.00014999,2]
[330568644,1719580990858,2039.0,0.000225,30]
[330568645,1719581138796,429.85287672,0.000225,30]
[330568646,1719581152083,1538.734,0.00015,10]
[330568651,1719581347558,-300.0,0.00016254,2]
[330568652,1719581347588,-300.0,0.00016254,2]
[330568653,1719581347618,-85.70099506,0.00016255,2]
[330568654,1719581347651,-308.71579075,0.00016255,2]
[330568655,1719581347743,-685.70099506,0.00016255,2]
[330568656,1719581356128,-242.31003536,0.00016255,2]
[330568657,1719581372769,-719.30335068,0.00016155,2]
[330568658,1719581372829,-260.84408468,0.00016155,2]
[330568659,1719581375380,-719.30335068,0.00016155,2]
[330568691,1719581432374,-4069.11365111,0.00016155,2]
[330568693,1719581432384,-300.0,0.00016254,2]
[330568694,1719581432398,-300.0,0.00016254,2]
[330568695,1719581432408,-451.05430784,0.00016255,2]
[330568696,1719581432514,-2835.70352642,0.00016255,2]
[330568702,1719581438192,-1001.64510084,0.00016255,2]
[330568784,1719581441055,-5319.97233418,0.00016255,2]
[330569298,1719581446639,-5946.77897415,0.00016255,2]
[330569299,1719581446651,-757.79507065,0.00016255,2]
[330574379,1719581501555,401.65252924,0.00014999,2]
[330576328,1719581522058,1751.6118953,0.00014999,2]
[330577431,1719581533717,181.53915781,0.00014999,2]
[330578752,1719581668180,208.23002771,0.00014999,2]
[330578753,1719581673931,1466.71812487,0.00014999,2]
[330578754,1719581682547,207.66347557,0.00014999,2]
[330578755,1719581683366,282.99049332,0.00014999,2]
[330578756,1719581690896,282.99049332,0.00014999,2]
[330578757,1719581732404,154.83742071,0.00014999,2]
[330578760,1719581795756,821.98235044,0.00014999,2]
[330578762,1719581857387,412.57642763,0.00014999,2]
[330580263,1719582390826,2525.22950658,0.00014891,2]
[330580266,1719582449206,-180.88095611,0.00014891,2]
[330580296,1719582566742,-293.88953731,0.00014891,2]
[330580297,1719582566767,-300.0,0.00015432,2]
[330580298,1719582566792,-8476.9751178,0.00015433,2]
[330580301,1719582596518,-677.59258881,0.00015433,2]
[330580302,1719582596793,-677.59258881,0.00015433,2]
[330580303,1719582596846,-269.11133952,0.00015433,2]
[330580336,1719582632816,-374.947935,0.00015345,2]
[330580337,1719582632826,-194.66099916,0.00015345,2]
[330580349,1719582638526,-1931.59694161,0.00015345,2]
[330580406,1719582643935,-22773.74205923,0.00015345,2]
[330580407,1719582643946,-300.0,0.00015432,2]
[330580408,1719582643955,-289.0,0.00015432,2]
[330580409,1719582643964,-5146.14106948,0.00015995,2]
[330580420,1719582646884,-137.53756407,0.00015995,2]
[330580421,1719582646895,-1000.0,0.00016254,2]
[330580422,1719582646904,-8434.19362111,0.00016255,2]
[330580423,1719582646914,-41291.35016041,0.00016255,2]
[330580449,1719582858250,963.5301908,9.999e-05,2]
[330580461,1719583034959,179.22779357,0.0001,2]
[330580462,1719583036663,282.99049332,9.999e-05,2]
[330580463,1719583043956,-289.04821488,0.00014794,2]
[330580464,1719583043980,-157.2682199,0.00014794,2]
[330580465,1719583044005,-300.0,0.00014998,2]
[330580466,1719583044028,-300.0,0.00014998,2]
[330580467,1719583044052,-2041.8718293,0.00014999,2]
[330580468,1719583044075,-3074.87437864,0.00014999,2]
[330580469,1719583044098,-3925.7164855,0.00014999,2]
[330580470,1719583044124,-1489.50778656,0.00014999,2]
[330580471,1719583044146,-1914.02350809,0.00014999,2]
[330580472,1719583044169,-1313.011853,0.00014999,2]
[330580473,1719583044191,-2129.2320514,0.00014999,2]
[330580474,1719583044214,-155.02976936,0.00014999,2]
[330580479,1719583193106,368.68588524,0.00014999,2]
[330580480,1719583199140,896.45463303,0.00014999,2]
[330580481,1719583204007,390.99158806,0.00014999,2]
[330580484,1719583632985,-157.2682199,0.00015673,2]
[330580493,1719583770139,-742.00269854,0.00015397,2]
[330580498,1719583831737,10016.76408018,0.0001955,32]
[330580536,1719583839192,-300.0,0.00015396,2]
[330580540,1719583839205,-236.0,0.00015396,2]
[330580542,1719583839215,-261.88023904,0.00015397,2]
[330580616,1719583841423,-23896.11706242,0.00015397,2]
[330580617,1719583841433,-2842.7317801,0.00015673,2]
[330580618,1719583841442,-242.31003536,0.00015673,2]
[330580619,1719583841453,-270.901942,0.00016015,2]
[330580620,1719583841462,-5283.67863355,0.00016036,2]
[330580621,1719583841471,-748.26864926,0.00016255,2]
[330580672,1719583844501,-140.98333021,0.00016255,2]
[330580673,1719583844511,-7775.32730614,0.00016255,2]
[330580674,1719583844520,-420.0,0.00016935,2]
[330580675,1719583844529,-863.3945476,0.00017789,2]
[330580676,1719583844539,-1356.93,0.00018,2]
[330580677,1719583844548,-204.2756354,0.00018082,2]
[330580678,1719583844557,-587.0,0.00018629,2]
[330580679,1719583844567,-153.0,0.0001863,2]
[330580680,1719583844576,-153.0,0.0001863,2]
[330580681,1719583844585,-153.0,0.0001863,2]
[330580682,1719583844594,-205.561833,0.0001863,2]
[330580683,1719583844603,-632.16972738,0.00018678,2]
[330580684,1719583844613,-3991.83159614,0.00018832,2]
[330580685,1719583844622,-3824.77124561,0.00018894,2]
[330580686,1719583844634,-167.06035051,0.00018894,2]
[330580687,1719583844643,-163.07194785,0.000189,2]
[330580688,1719583844652,-155.95217392,0.000189,2]
[330580689,1719583844661,-282.95777938,0.000189,2]
[330580690,1719583844672,-205.8950775,0.00018904,2]
[330580691,1719583844681,-6759.80279053,0.00018904,2]
[330580692,1719583844691,-205.8950775,0.00018932,2]
[330580693,1719583844702,-205.8950775,0.00018932,2]
[330580694,1719583844711,-3991.83159612,0.00018955,2]
[330580695,1719583844859,-408.52,0.00018978,3]
[330580696,1719583844869,-204.26,0.00018978,3]
[330580697,1719583844878,-612.78,0.00018978,3]
[330580698,1719583844888,-1000.0,0.00018988,2]
[330580699,1719583844897,-2750.56526388,0.00018988,2]
[330580700,1719583844910,-7018.65003498,0.00018988,2]
[330580701,1719583844922,-3872.12389218,0.00018988,2]
[330580702,1719583844933,-8349.62017563,0.00018988,2]
[330580751,1719583847498,-3.0,0.00018988,2]
[330580752,1719583847511,-4444.37835935,0.00018988,2]
[330580767,1719583956798,11118.98907716,0.00014998,2]
[330580770,1719583982135,2123.95279144,0.00014999,2]
[330580771,1719583984040,667.40563611,0.00014999,2]
[330580772,1719583989794,475.66588856,0.00014999,2]
[330580773,1719584004205,496.88522416,0.00014999,2]
[330580774,1719584006278,1914.02350809,0.00014999,2]
[330580775,1719584008019,206.42529152,0.00014999,2]
[330580776,1719584013349,208.37564863,0.00014999,2]
[330580777,1719584017774,1313.011853,0.00014999,2]
[330580778,1719584019091,10562.28786365,0.00014998,2]
[330580779,1719584019681,2167.26101472,0.00014999,2]
[330580788,1719584280735,204.26,0.00010959,2]
[330580790,1719584304759,170.21,0.00010959,2]
[330580791,1719584315348,851.09,0.00010959,2]
[330580795,1719584375909,662.96221654,9.999e-05,2]
[330580801,1719584462942,155.00269854,9.999e-05,2]
[330580802,1719584493947,156.31042208,9.999e-05,2]
[330580828,1719584549815,222.42644311,9.999e-05,2]
[330580832,1719584665307,180.0065174,0.0001212,2]
[330580836,1719584705290,154.83742071,0.0001212,2]
[330580846,1719584799245,-500.0,0.00027397,30]
[330580847,1719584799272,-500.0,0.00027397,30]
[330580848,1719584799299,-500.0,0.00027397,30]
[330580849,1719584799431,-500.0,0.00027397,30]
[330580850,1719584799463,-500.0,0.00027397,30]
[330580851,1719584799490,-500.0,0.00027397,30]
[330580852,1719584799518,-500.0,0.00027397,30]
[330580853,1719584799543,-500.0,0.00027397,30]
[330580854,1719584799569,-500.0,0.00027397,30]
[330580855,1719584799595,-500.0,0.00027397,30]
[330580856,1719584799635,-500.0,0.00027397,30]
[330580857,1719584799677,-909.47482687,0.000275,30]
[330580858,1719584799716,-190.5232,0.00027645,30]
[330580859,1719584799767,-624.92909782,0.00027671,30]
[330580860,1719584799892,-384.63702763,0.0003,30]
[330580861,1719584799969,-2000.0,0.000328,120]
[330580862,1719584800017,-1433.31324579,0.0003295,60]
[330580863,1719584800057,-396.29919118,0.00033,30]
[330580864,1719584800097,-3000.0,0.000338,120]
[330580865,1719584800138,-3000.0,0.000348,120]
[330580866,1719584800179,-1433.39,0.00035616,120]
[330580867,1719584800218,-1433.39,0.00035616,120]
[330580868,1719584800258,-1433.39,0.00035616,120]
[330580869,1719584800300,-1433.39,0.00035616,120]
[330580870,1719584800339,-1433.39,0.00035616,120]
[330580871,1719584800376,-1433.39,0.00035616,120]
[330580872,1719584800414,-1521.50834831,0.000358,120]
[330580873,1719584800456,-5216.35254627,0.00036655,30]
[330580874,1719584800496,-6000.0,0.000379,120]
[330580875,1719584800536,-800.0,0.000379,120]
[330580876,1719584800574,-800.0,0.000379,30]
[330580877,1719584800612,-1000.0,0.00038,90]
[330580878,1719584800649,-1000.0,0.00038,90]
[330580879,1719584800686,-1000.0,0.00038,90]
[330580880,1719584800724,-1000.0,0.00038,90]
[330580881,1719584800762,-485.08509488,0.00038,90]
[330580882,1719584800800,-23976.129869,0.00038,30]
[330580883,1719584800838,-508.0,0.00038,120]
[330580884,1719584800877,-500.0,0.00038356,120]
[330580885,1719584800916,-261.17167306,0.00038356,30]
[330580886,1719584800955,-665.65,0.00038888,120]
[330580887,1719584800994,-520.62808472,0.0004,120]
[330580888,1719584801034,-500.0,0.0004,120]
[330580889,1719584801074,-500.0,0.0004,120]
[330580890,1719584801112,-1058.0,0.0004,120]
[330580891,1719584801152,-5000.0,0.0004,120]
[330580892,1719584801191,-5000.0,0.0004,120]
[330580893,1719584801327,-5000.0,0.0004,120]
[330580894,1719584801365,-5000.0,0.0004,120]
[330580895,1719584801403,-4480.3634612,0.0004,30]
[330580896,1719584801446,-10000.0,0.0004,55]
[330580897,1719584801487,-178.7982901,0.00040018,30]
[330580898,1719584801524,-259.75317585,0.0004003,30]
[330580899,1719584801562,-569.82144192,0.00040273,58]
[330580900,1719584801600,-259.75317585,0.00040307,30]
[330580901,1719584801637,-154528.53632054,0.00040316,90]
[330580902,1719584801672,-259.75317585,0.0004055,30]
[330580903,1719584801707,-259.75317585,0.00040612,30]
[330580904,1719584801743,-178.7982901,0.00040669,30]
[330580905,1719584801779,-150.00250945,0.00040816,30]
[330580906,1719584801815,-11325.04411731,0.00040832,30]
[330580907,1719584801851,-259.75317585,0.00040888,30]
[330580908,1719584801886,-196.10671835,0.000409,30]
[330580909,1719584801920,-276.9,0.00041041,31]
[330580910,1719584801955,-152.0,0.00041041,31]
[330580911,1719584801990,-1000.0,0.00041095,120]
[330580912,1719584802028,-1000.0,0.00041095,120]
[330580913,1719584802067,-1000.0,0.00041095,120]
[330580914,1719584802103,-1000.0,0.00041095,120]
[330580915,1719584802140,-1000.0,0.00041095,120]
[330580916,1719584802175,-1000.0,0.00041095,120]
[330580917,1719584802210,-1000.0,0.00041095,120]
[330580918,1719584802244,-1000.0,0.00041095,120]
[330580919,1719584802280,-653.41125082,0.00041095,120]
[330580920,1719584802318,-2883.88,0.00041095,120]
[330580921,1719584802354,-259.75317585,0.00041256,30]
[330580922,1719584802390,-178.7982901,0.00041328,30]
[330580923,1719584802453,-2883.88,0.00041369,120]
[330580924,1719584802507,-159.58668661,0.00041559,30]
[330580925,1719584802567,-2883.88,0.00041643,120]
[330580926,1719584802620,-150.00250945,0.00041827,30]
[330580927,1719584802674,-259.75317607,0.00041865,30]
[330580928,1719584802729,-2883.88,0.00041917,120]
[330580929,1719584802776,-1706.18548262,0.00042,30]
[330580930,1719584802823,-19495.68383516,0.00042,30]
[330580931,1719584802869,-150.00250945,0.00042148,30]
[330580932,1719584802918,-2883.88,0.00042191,120]
[330580933,1719584802968,-150.00250945,0.000422,30]
[330580934,1719584803018,-178.7982901,0.00042442,30]
[330580935,1719584803070,-2883.88,0.00042465,120]
[330580936,1719584803120,-1975.04638601,0.000425,30]
[330580937,1719584803170,-159.58668663,0.00042613,30]
[330580938,1719584803223,-2883.88,0.00042739,120]
[330580939,1719584803278,-1353271.04925586,0.000428,30]
[330580940,1719584803332,-1316378.00072207,0.000428,30]
[330580941,1719584811474,-2042.75,0.00041095,120]
[330580942,1719584811513,-2042.75,0.00041369,120]
[330580943,1719584811558,-2042.75,0.00041643,120]
[330580944,1719584811595,-2042.75,0.00041917,120]
[330580945,1719584811632,-2042.75,0.00042191,120]
[330580946,1719584811670,-2042.75,0.00042465,120]
[330580947,1719584811707,-2042.75,0.00042739,120]
[330580948,1719584811745,-1290010.4282215,0.000428,30]
[330580949,1719584811785,-178.7982901,0.00042931,30]
[330580950,1719584811823,-178.7982901,0.00042972,30]
[330580951,1719584811860,-242.8590566,0.00043,30]
[330580952,1719584811895,-5685.62388514,0.00043,30]
[330580953,1719584811932,-10000.0,0.00043,65]
[330580954,1719584811968,-20782.24757562,0.00043,30]
[330580955,1719584812004,-142039.87133177,0.00043,30]
[330580956,1719584812044,-31549.75803471,0.00043,30]
[330580957,1719584812081,-1706.0,0.00043,30]
[330580958,1719584812118,-19494.0,0.00043,30]
[330580959,1719584812155,-908.62918221,0.00043,30]
[330580960,1719584812191,-2042.75,0.00043013,120]
[330580961,1719584812227,-178.7982901,0.00043187,30]
[330580962,1719584812263,-234.40457415,0.000433,120]
[330580963,1719584812298,-158.31903927,0.00043365,30]
[330580964,1719584812334,-163.2023622,0.00043367,30]
[330580965,1719584812370,-150.00250945,0.00043447,30]
[330580966,1719584812408,-800.0,0.000435,120]
[330580967,1719584812449,-178.7982901,0.00043527,30]
[330580968,1719584812485,-800.0,0.0004355,120]
[330580969,1719584812523,-800.0,0.0004355,120]
[330580970,1719584812559,-178.79829023,0.00043553,30]
[330580971,1719584812596,-63076.07100076,0.000436,60]
[330580972,1719584812630,-67970.45888311,0.0004366,60]
[330580973,1719584812665,-152.33517351,0.00043816,52]
[330580974,1719584812702,-150.00250947,0.00043825,30]
[330580975,1719584812737,-424.30500404,0.00043835,120]
[330580976,1719584812773,-269.45280387,0.00043835,30]
[330580977,1719584812810,-500.0,0.00043835,30]
[330580978,1719584812845,-500.0,0.00043835,30]
[330580979,1719584812879,-500.0,0.00043835,30]
[330580980,1719584812915,-500.0,0.00043835,30]
[330580981,1719584812949,-500.0,0.00043835,30]
[330580982,1719584812984,-500.0,0.00043835,30]
[330580983,1719584813018,-500.0,0.00043835,30]
[330580984,1719584813054,-500.0,0.00043835,30]
[330580985,1719584813090,-500.0,0.00043835,30]
[330580986,1719584813125,-500.0,0.00043835,30]
[330580987,1719584813161,-500.0,0.00043835,30]
[330580988,1719584813199,-500.0,0.00043835,30]
[330580989,1719584813238,-500.0,0.00043835,30]
[330580990,1719584813279,-500.0,0.00043835,30]
[330580991,1719584813320,-500.0,0.00043835,30]
[330580992,1719584813360,-500.0,0.00043835,30]
[330580993,1719584813399,-486.1132328,0.00043835,30]
[330580994,1719584813442,-1316.0,0.0004398,58]
[330580995,1719584813592,-1320.72698015,0.00044014,60]
[330580996,1719584813635,-276.9,0.00044694,31]
[330580997,1719584813673,-152.0,0.00044694,31]
[330580998,1719584813713,-1313644.29718904,0.000448,60]
[330580999,1719584821970,-2042.75,0.00043287,120]
[330581000,1719584822014,-2042.75,0.00043561,120]
[330581001,1719584822060,-2042.75,0.00043835,120]
[330581002,1719584822102,-2042.75,0.00044109,120]
[330581003,1719584822141,-2042.75,0.00044383,120]
[330581004,1719584822181,-2042.75,0.00044657,120]
[330581005,1719584822222,-686355.70281096,0.000448,60]
[330581006,1719584822267,-500.0,0.00044931,120]
[330581007,1719584822309,-2042.75,0.00044931,120]
[330581008,1719584822348,-190.91253378,0.00045,120]
[330581009,1719584822387,-500.0,0.00045,120]
[330581010,1719584822429,-300.669999,0.00045,30]
[330581011,1719584822471,-2042.75,0.00045205,120]
[330581012,1719584822513,-151.0,0.0004526,120]
[330581013,1719584822552,-500.0,0.00045479,120]
[330581014,1719584822590,-2042.75,0.00045479,120]
[330581015,1719584822629,-2042.75,0.00045753,120]
[330581016,1719584822667,-152.33517351,0.00045816,61]
[330581017,1719584822707,-401.178004,0.00046,30]
[330581018,1719584822747,-500.0,0.00046027,120]
[330581019,1719584822790,-2042.75,0.00046027,120]
[330581020,1719584822830,-2042.75,0.00046301,120]
[330581021,1719584822870,-500.0,0.00046575,120]
[330581022,1719584822910,-2042.75,0.00046575,120]
[330581023,1719584822951,-151.0,0.00046575,120]
[330581024,1719584822991,-2042.75,0.00046849,120]
[330581025,1719584823032,-200005.84846195,0.00047,120]
[330581026,1719584823075,-500.0,0.00047123,120]
[330581027,1719584823118,-2042.75,0.00047123,120]
[330581028,1719584823160,-2042.75721249,0.00047397,120]
[330581029,1719584823203,-500.0,0.00047671,120]
[330581030,1719584823249,-4563.78283972,0.000477,60]
[330581031,1719584823297,-1000000.0,0.000478,60]
[330581032,1719584823343,-5000.0,0.00047808,30]
[330581033,1719584823389,-152.33517351,0.00047816,69]
[330581034,1719584823441,-151.0,0.0004789,120]
[330581035,1719584823486,-500.0,0.00048,120]
[330581036,1719584823530,-400.0,0.00048,30]
[330581037,1719584823573,-500.0,0.00048219,120]
[330581038,1719584823619,-276.9,0.00048347,60]
[330581039,1719584823666,-152.0,0.00048347,60]
[330581040,1719584823712,-5099.0,0.00048493,60]
[330581041,1719584823758,-224.77312104,0.0004858,30]